Cogmind - Beta 15 @@@ ROGUE MODE // 2025.09.13 @ 14:06:58 Player: Dadrick Result: Destroyed by P-80 Master with Gamma Rifle Performance ------------- Evolutions (7) 3500 Regions Visited (28) 5600 Robots Destroyed (333) 1665 Value Destroyed (12146) 12146 Prototype IDs (58) 1160 Alien Tech Used (2) 400 Bonus (4261) 4261 TOTAL SCORE: 28732 Bonus ------- Triggered Max Security 1000 High Alert Combat Kills 685 Follower Combat Kills 1890 Network Hubs Disabled 200 Aligned with FarCom 300 Met Data Miner 300 Met Zhirov 300 Built Enhanced Grunts 300 Met R17 at Cetus 500 Met R17 at Research 2000 Friendly Fire -3214 Cogmind --------- Core Integrity 0/1300 Matter 30/300 Energy 88/100 System Corruption 8% Temperature Cool (0) Movement Core (50) Location -3/Testing Parts ------- > --- POWER (3) -------- (None) > --- PROPULSION (5) --- (None) > --- UTILITY (10) ----- (None) > --- WEAPON (3) ------- (None) > --- INVENTORY (5) ---- Advanced Heat Sink Improved Trap Extractor (3/6 Shock) Quantum Rifle Long-range Phase Cannon Cooled Phase Cannon Peak State ------------ > --- POWER ------------ Antimatter Reactor Light Particle Reactor Light Quantum Reactor > --- PROPULSION ------- Shield Leg Biometal Leg Biometal Leg Enhanced Biometal Leg Centrium Leg > --- UTILITY ---------- Huge Storage Unit Core Analyzer Makeshift Transmission Jammer Centrium Light Armor Plating Centrium Medium Armor Plating Centrium Medium Armor Plating Centrium Medium Armor Plating Improved Force Field Improved Hacking Suite Improved System Shield > --- WEAPON ----------- Railgun Advanced KE Penetrator Plasma Lance > --- INVENTORY -------- Antimatter Reactor Antimatter Reactor Light Antimatter Reactor Particle Reactor Flexi-carbon Leg Flexi-carbon Leg Enhanced Flexi-carbon Leg Myomer Leg Advanced Heat Sink Advanced Cooling System Experimental Matter Compressor Quantum Capacitor Improved Power Shielding Centrium Light Armor Plating Advanced Force Field Advanced Point Defense System Improved Trap Extractor Trap Reconfigurator Compact HERF Cannon Long-range Phase Cannon Enhanced Gauss Cannon Tactical Quantum Warhead Advanced Remote Datajack Phasing Sabre [Rating: 168] Favorites ----------- Power Angular Momentum Engine Engine Angular Momentum Engine Power Core Neutrino Core Reactor Antimatter Reactor Propulsion Flexi-carbon Leg Leg Flexi-carbon Leg Utility Core Analyzer Device Weapon Mount Storage Medium Storage Unit Processor Core Analyzer Hackware Improved Hacking Suite Protection Centrium Medium Armor Plating Weapon Gauss Cannon Energy Gun Advanced Beam Rifle Energy Cannon Disruptor Cannon Ballistic Gun Improved Assault Rifle Ballistic Cannon Gauss Cannon Launcher Mini Grenade Launcher Special Weapon Mining Laser Impact Weapon Powered Hammer Slashing Weapon Phasing Sabre Piercing Weapon Lance Special Melee Weapon Advanced Datajack Build | -11 -10 -10 -10 -9 -8 -8 -7 -7 -7 -6 -6 -6 -6 -5 -5 -5 -5 -5 -4 -4 -4 -4 -4 -4 -4 -4 -3 -3 ------- Run | Yrd Mat Min Exi Min Mat Sto Fac Was Fac Fac Low Low Dat Pro Fac Upp Upp Zhi Pro Fac Was Fac Ext Cet Arc Hub Res Tes Slots Evolved 14 | . . . . . 4 . 2 . . 2 . . . . 2 . . . . 2 . . . . . . 2 . Power 2 | . . . . . . . . . . . . . . . 1 . . . . . . . . . . . 1 . Propulsion 3 | . . . . . 1 . . . . 1 . . . . . . . . . 1 . . . . . . . . Utility 8 | . . . . . 2 . 2 . . 1 . . . . 1 . . . . 1 . . . . . . 1 . Weapon 1 | . . . . . 1 . . . . . . . . . . . . . . . . . . . . . . . Parts Attached 275 | 7 15 2 . 2 21 17 29 4 13 32 4 4 . . 19 3 3 3 3 5 1 5 27 8 6 . 42 . Power 34 | 1 2 . . 1 1 1 4 . 1 2 . 1 . . 2 . 1 1 1 . . 2 5 1 . . 7 . Engine 7 | 1 2 . . . . 1 . . . 1 . 1 . . . . . . . . . 1 . . . . . . Core 17 | . . . . 1 1 . 4 . 1 1 . . . . 1 . 1 . 1 . . 1 5 . . . . . Reactor 10 | . . . . . . . . . . . . . . . 1 . . 1 . . . . . 1 . . 7 . Propulsion 58 | 2 3 2 . 1 2 7 5 . 3 7 2 . . . 3 . . . 2 . 1 . 7 1 . . 10 . Treads . | . . . . . . . . . . . . . . . . . . . . . . . . . . . . . Leg 58 | 2 3 2 . 1 2 7 5 . 3 7 2 . . . 3 . . . 2 . 1 . 7 1 . . 10 . Wheel . | . . . . . . . . . . . . . . . . . . . . . . . . . . . . . Hover . | . . . . . . . . . . . . . . . . . . . . . . . . . . . . . Flight . | . . . . . . . . . . . . . . . . . . . . . . . . . . . . . Utility 111 | 2 3 . . . 11 3 15 . 7 16 1 3 . . 9 1 . 2 . 2 . . 10 4 6 . 16 . Device 46 | 1 . . . . 2 . 9 . 4 5 1 1 . . 3 1 . 1 . 2 . . 6 1 1 . 8 . Storage 10 | 1 2 . . . 1 . . . 1 1 . . . . 1 . . . . . . . 2 . . . 1 . Processor 12 | . . . . . 2 1 2 . 1 4 . . . . . . . . . . . . . . . . 2 . Hackware 10 | . . . . . 1 . 1 . . 1 . . . . 2 . . . . . . . . . 4 . 1 . Protection 33 | . 1 . . . 5 2 3 . 1 5 . 2 . . 3 . . 1 . . . . 2 3 1 . 4 . Artifact . | . . . . . . . . . . . . . . . . . . . . . . . . . . . . . Weapon 72 | 2 7 . . . 7 6 5 4 2 7 1 . . . 5 2 2 . . 3 . 3 5 2 . . 9 . Energy Gun 8 | . . . . . . 1 2 2 . . . . . . 1 . . . . . . 1 . . . . 1 . Energy Cannon 6 | . . . . . . . . . . . . . . . 1 1 . . . 1 . . 1 . . . 2 . Ballistic Gun 25 | 2 3 . . . 5 4 . . . . . . . . 3 1 . . . . . . 2 2 . . 3 . Ballistic Cannon 14 | . 3 . . . . . . . 2 4 . . . . . . 2 . . 1 . 2 . . . . . . Launcher 7 | . . . . . 1 1 1 1 . 2 . . . . . . . . . . . . . . . . 1 . Special Weapon 2 | . 1 . . . . . . . . . . . . . . . . . . . . . . . . . 1 . Impact Weapon 5 | . . . . . 1 . 1 . . 1 1 . . . . . . . . . . . 1 . . . . . Slashing Weapon 2 | . . . . . . . 1 . . . . . . . . . . . . . . . 1 . . . . . Piercing Weapon 2 | . . . . . . . . 1 . . . . . . . . . . . . . . . . . . 1 . Special Melee Weapon 1 | . . . . . . . . . . . . . . . . . . . . 1 . . . . . . . . Unidentified Prototypes 17 | . . . . . 1 1 . . . . . . . . . . . 4 . . . . 1 3 . . 7 . Corrupted Parts 3 | . . . . . . . . . . . . . . . . 1 . . 2 . . . . . . . . . System Corruption 14 | . . . . . . . . . . . . . . . . 6 . . 8 . . . . . . . . . Parts Lost 81 | . 1 . . . 5 8 2 10 . 1 . . . 1 4 1 . . 5 7 . 1 7 . . . 28 . Power 13 | . 1 . . . 1 . . 1 . . . . . . . . . . 1 1 . . 1 . . . 7 . Propulsion 13 | . . . . . . 2 . . . . . . . . . . . . . 2 . . 2 . . . 7 . Utility 26 | . . . . . 4 2 1 2 . 1 . . . 1 1 . . . 2 2 . . 1 . . . 9 . Weapon 29 | . . . . . . 4 1 7 . . . . . . 3 1 . . 2 2 . 1 3 . . . 5 . Highest Loss Streak 21 | . 1 . . . 1 3 1 10 . 1 . . . 1 1 1 . . 2 3 . 1 3 . . . 21 . To Critical Strikes . | . . . . . . . . . . . . . . . . . . . . . . . . . . . . . Average Backups 11 | 1 7 10 11 10 13 14 18 13 8 9 10 10 10 9 9 10 10 9 9 8 5 4 4 5 5 5 18 5 Power . | . . 1 1 1 1 1 1 . . 1 1 1 1 1 . 1 1 1 . . 1 . . . . . 2 . Propulsion 1 | . 1 2 3 3 3 4 2 1 2 1 1 1 1 1 1 1 1 1 1 . . . . . . . 3 . Utility 5 | . 1 4 4 4 3 4 8 8 3 5 6 6 6 5 5 6 6 6 6 5 4 4 3 3 3 4 8 2 Weapon 2 | . 3 3 2 2 4 5 5 2 2 2 2 2 2 2 2 2 2 1 1 1 . . . 1 1 1 4 3 Tool/Special . | . . . . . . . . . . . . . . . . . . . . . . . . . . . . . Unused Backups 38 | . 4 . . . 4 3 3 5 1 5 1 1 . 1 2 . . . . . 1 . . . . . 5 2 Power 5 | . . . . . 1 1 . 1 . 1 . . . . . . . . . . . . . . . . 1 . Propulsion 12 | . 1 . . . 2 . 2 2 . . 1 . . 1 2 . . . . . . . . . . . 1 . Utility 12 | . . . . . 1 . . 2 1 2 . 1 . . . . . . . . 1 . . . . . 3 1 Weapon 9 | . 3 . . . . 2 1 . . 2 . . . . . . . . . . . . . . . . . 1 Tool/Special . | . . . . . . . . . . . . . . . . . . . . . . . . . . . . . Average Slot Usage (%) 90 | . 99 100 100 100 93 96 95 39 77 93 93 99 87 99 86 87 88 77 86 86 42 33 68 94 99 100 96 . Engine 3 | . 13 14 14 . . 3 1 . . 3 6 6 6 6 5 5 . . . . . . 1 . . . . . Core 3 | . . . . 13 8 5 5 3 6 2 . . . . 3 . 4 5 4 5 1 1 8 8 5 5 1 . Reactor 1 | . . . . . . . . . . . . . . . . 5 5 5 5 4 . . . 1 5 5 9 . Leg 21 | . 28 28 28 28 27 26 20 6 20 26 26 26 26 26 15 11 11 11 11 20 14 15 21 26 26 26 22 . Device 10 | . 8 12 14 5 . . 9 6 17 7 6 10 13 13 13 12 17 17 17 21 8 . 8 15 8 10 9 . Storage 5 | . 14 14 14 14 9 9 7 3 5 6 6 6 6 6 5 5 5 5 5 5 1 . . . . . 3 . Processor 9 | . . . . . 6 14 14 8 4 14 13 13 13 13 11 11 11 11 11 10 10 10 10 10 6 5 5 . Hackware 2 | . . . . . 5 . 3 . . . . . . . 2 4 . . . . . . . . 14 21 12 . Protection 8 | . 5 1 . 8 9 10 7 1 2 9 13 14 13 12 7 10 11 10 10 8 . . 4 14 15 9 12 . Energy Gun 1 | . . . . . . . 10 5 . . . . . . . . . . . . . 3 1 . . . . . Ballistic Gun 6 | . 15 . . . 24 24 9 . . . . . . . . 11 1 . . . . . 3 9 10 9 8 . Ballistic Cannon 6 | . 9 27 28 28 . . . . 10 12 13 13 1 13 9 . 9 . 9 . . 1 4 . . . 1 . Impact Weapon 2 | . . . . . 1 . . . . 3 5 6 6 5 4 4 5 5 5 5 5 . 2 . . . . . Peak Build Rating 168 | 7 8 10 11 13 35 40 57 54 55 72 70 69 69 70 85 83 82 80 79 102 75 55 106 125 125 125 168 3 Average Rating 67 | 5 7 9 10 12 28 28 47 24 40 62 68 68 61 69 79 80 78 71 76 89 41 39 74 116 124 121 148 2 On Entrance 54 | . 7 8 10 11 13 33 28 54 8 50 66 69 69 69 70 81 82 78 78 71 71 33 55 105 125 125 119 3 Naked Turns 87 | . . . . . . . . 20 . . . . . . . . . . . . . . . . . . 5 62 Heaviest Build 191 | 14 32 32 30 34 48 48 71 62 57 74 63 62 56 64 86 72 71 71 73 84 42 36 90 93 86 80 191 . Greatest Support 144 | 20 20 25 25 25 49 49 60 50 44 68 72 72 72 72 72 60 60 60 75 91 41 57 101 109 109 109 144 3 Greatest Overweight (x) 2 | 1 1 1 1 1 1 2 1 1 2 1 . . . . 1 1 1 1 1 1 1 . . . . . 1 . Average Overweight (x) . | . . 1 1 1 . . . . . . . . . . . . 1 . . . . . . . . . . . Largest Inventory Capacity 25 | 8 20 15 15 15 20 15 20 20 10 10 10 10 10 10 10 10 10 10 10 10 10 5 5 5 5 5 25 5 Average Capacity 12 | 7 9 15 15 15 15 15 18 12 9 10 10 10 10 10 10 10 10 10 10 10 5 5 5 5 5 5 22 5 Most Carried 25 | 3 10 15 15 15 15 15 20 20 10 10 10 10 10 10 10 10 10 10 10 9 8 5 5 5 5 5 25 5 Average Carried 11 | 1 7 14 14 14 14 14 18 12 8 9 9 9 10 9 9 10 9 9 9 8 5 4 4 4 5 5 19 4 Final Capacity 20 | 8 15 15 15 15 15 15 20 5 10 10 10 10 10 10 10 10 10 10 10 10 5 5 5 5 5 5 5 5 Final Carried 20 | 3 10 15 15 15 14 15 20 5 10 10 10 10 10 10 10 10 10 10 7 8 5 5 5 5 5 5 5 5 Class Distribution -------------------- 41% | Mutant 21% | Scavenger-Mutant 10% | Trapper-Mutant 9% | Skirmisher 5% | Scavenger-Skirmisher 3% | Derelict-Mutant Dominant Class ---------------- Mutant | -10/Materials Scavenger-Mutant | -10/Mines Scavenger-Mutant | -10/Exiles Mutant | -9/Mines Scavenger-Skirmisher | -8/Materials Scavenger-Skirmisher | -8/Storage Skirmisher | -7/Factory Mutant | -7/Waste Mutant | -7/Factory Mutant | -6/Factory Mutant | -6/Lower Caves Derelict-Mutant | -6/Lower Caves Derelict-Mutant | -6/Data Miner Derelict-Mutant | -5/Proximity Caves Mutant | -5/Factory Mutant | -5/Upper Caves Trapper-Mutant | -5/Upper Caves Trapper-Mutant | -5/Zhirov Trapper-Mutant | -4/Proximity Caves Trapper-Mutant | -4/Factory Mutant | -4/Waste Mutant | -4/Factory Scavenger-Mutant | -4/Extension Scavenger-Mutant | -4/Cetus Scavenger-Mutant | -4/Archives Scavenger-Mutant | -4/Hub_04(d) Scavenger-Mutant | -3/Research Mutant | -3/Testing Resources | -11 -10 -10 -10 -9 -8 -8 -7 -7 -7 -6 -6 -6 -6 -5 -5 -5 -5 -5 -4 -4 -4 -4 -4 -4 -4 -4 -3 -3 ----------- Run | Yrd Mat Min Exi Min Mat Sto Fac Was Fac Fac Low Low Dat Pro Fac Upp Upp Zhi Pro Fac Was Fac Ext Cet Arc Hub Res Tes Matter Collected 14534 | 310 460 248 . 91 927 1303 1270 . 606 2037 251 136 . 171 1313 575 149 105 639 327 10 23 1075 332 147 164 1865 . Remotely 421 | . . . . . 123 298 . . . . . . . . . . . . . . . . . . . . . . Salvage Created 14501 | 129 512 . . 140 1436 1984 1846 211 436 2224 282 34 . 210 1526 445 86 105 364 191 . 36 845 63 394 403 599 . Parts 598 | 8 39 . . 6 75 91 94 5 23 67 9 1 . 4 48 21 4 . 16 . . 4 23 . 26 10 24 . Haulers Intercepted 17 | . 1 . . . 3 6 5 . . . . . . . 1 . . . . . . . . . . 1 . . Recyclers Shooed 13 | . 1 1 . . . 1 . . 1 6 . . . . 1 . . . . . . . 2 . . . . . Parts Field Recycled . | . . . . . . . . . . . . . . . . . . . . . . . . . . . . . Retrieved Matter . | . . . . . . . . . . . . . . . . . . . . . . . . . . . . . Parts Self-Destructed 43 | . . . . . . . . . . . 5 2 . 1 . 15 9 . 11 . . . . . . . . . Prevented 20 | . . . . . . . . . . . 2 3 . 1 . 9 . . 5 . . . . . . . . . Kills | -11 -10 -10 -10 -9 -8 -8 -7 -7 -7 -6 -6 -6 -6 -5 -5 -5 -5 -5 -4 -4 -4 -4 -4 -4 -4 -4 -3 -3 ------- Run | Yrd Mat Min Exi Min Mat Sto Fac Was Fac Fac Low Low Dat Pro Fac Upp Upp Zhi Pro Fac Was Fac Ext Cet Arc Hub Res Tes Combat Hostiles Destroyed 210 | . 11 . . 6 25 37 22 1 5 25 5 1 . 3 15 10 1 . 11 1 . . 14 1 1 1 14 . Melee 5 | . . . . . . . . . . 1 . . . . . . . . 2 1 . . 1 . . . . . Guns 83 | . 6 . . . 13 21 17 . . . . . . . 1 10 1 . . . . . 2 . 1 1 10 . Cannons 68 | . 5 . . 5 . . . . 5 14 2 1 . 2 13 . . . 7 . . . 11 1 . . 2 . AOE 44 | . . . . 1 12 16 3 1 . 6 3 . . . . . . . . . . . . . . . 2 . Classes Destroyed 23 | 2 5 . . 1 3 3 1 1 . . . . . 1 1 . 1 . 1 . . . 1 . . . 2 . Worker 20 | . 2 . . . . 5 4 . 2 3 . . . . 1 . . . . 1 . . . . . 2 . . Builder 14 | . . . . . . 1 . . 1 4 . . . . 5 . . . . 1 . . 1 . . 1 . . Tunneler 6 | 2 . . . . . . . . . 1 . . . . 1 . . . . 1 . 1 . . . . . . Hauler 17 | . 1 . . . 3 6 5 . . . . . . . 1 . . . . . . . . . . 1 . . Recycler 30 | 1 1 . . . 3 2 5 . 4 6 . . . . 5 . . . . 1 . . 1 . . 1 . . Minesweeper 3 | . . . . . . . . . . . . . . 1 . 1 . . 1 . . . . . . . . . Mechanic 4 | . . . . . . 2 1 . . 1 . . . . . . . . . . . . . . . . . . Operator 12 | . . . . . . . . . . . . . . . 1 . . . . . . 1 1 . 9 . . . Drone 2 | . . . . . . . . . . . . . . . . . . . 2 . . . . . . . . . Watcher 14 | . 2 . . . 2 . 4 . . 1 . . . . 4 . . . . . . . . . . 1 . . Swarmer 34 | . 3 . . . 3 3 3 . 3 . . . . . . 4 . . 5 . . . 7 . . . 3 . Grunt 93 | . 8 . . 4 15 23 8 . . 12 4 1 . 2 2 4 . . 3 . . . 3 . . 1 3 . Brawler 2 | . . . . . . 1 . . . 1 . . . . . . . . . . . . . . . . . . Duelist 4 | . . . . . 1 1 . . . . . . . 1 . 1 . . . . . . . . . . . . Sentry 28 | . . . . . 5 9 1 . . 3 . . . . 3 1 . . . 1 . . 3 . 1 . 1 . Demolisher 3 | . . . . 2 . . . . . . . . . . . . . . . . . . . . . . 1 . Hunter 4 | . . . . . 1 . 1 . . . 1 . . . 1 . . . . . . . . . . . . . Programmer 31 | . . . . . . . 9 . 2 9 . . . . 9 . . . 1 . . . . . . . 1 . Behemoth 1 | . . . . . . . . . . . . . . . . . . . . . . . 1 . . . . . Compactor 1 | . . . . . . . . 1 . . . . . . . . . . . . . . . . . . . . Cetus Guard 1 | . . . . . . . . . . . . . . . . . . . . . . . . 1 . . . . Striker 4 | . . . . . . . . . . . . . . . . . . . . . . . . . . . 4 . Executioner 1 | . . . . . . . . . . . . . . . . . . . . . . . . . . . 1 . Savage 2 | . . . . . . . . . . . . . . . . . . . . . . . 2 . . . . . Mutant 1 | . . . . . . . . . . . . . . . . . 1 . . . . . . . . . . . Best Kill Streak 12 | 2 4 . . 4 6 12 5 1 3 4 3 1 . 3 4 4 1 . 5 1 . 1 4 1 3 4 5 . Combat Bots Only 10 | . 3 . . 4 6 10 4 1 3 4 3 1 . 3 3 4 1 . 5 1 . . 4 1 1 1 5 . Max Kills in Single Turn 3 | 1 2 . . 1 3 3 2 1 2 3 2 1 . 1 2 2 1 . 1 1 . 1 1 1 1 3 1 . Gunslinging 1 | . . . . . 1 1 1 . . . . . . . . 1 . . . . . . . . . . . . Exploded 3 | . . . . 1 3 3 2 1 . 3 2 . . . . . . . . . . . . . . . 1 . Melee 1 | . . . . . . . . . . 1 . . . . . . . . 1 1 . . 1 . . . . . Uniques/NPCs Destroyed 1 | . . . . . . . . . . . . . . . . . . . . . . . . 1 . . . . A7 (-4/Cetus) Combat | -11 -10 -10 -10 -9 -8 -8 -7 -7 -7 -6 -6 -6 -6 -5 -5 -5 -5 -5 -4 -4 -4 -4 -4 -4 -4 -4 -3 -3 -------- Run | Yrd Mat Min Exi Min Mat Sto Fac Was Fac Fac Low Low Dat Pro Fac Upp Upp Zhi Pro Fac Was Fac Ext Cet Arc Hub Res Tes Hostile Shots Fired 1682 | . 76 3 . 22 71 149 124 16 26 154 25 . . 17 220 44 16 . 116 118 . 12 107 12 1 2 342 9 Missed 510 | . 16 2 . 9 20 40 47 2 10 57 7 . . 3 64 11 3 . 40 47 . 10 29 4 . . 88 1 Intercepted 12 | . . . . . . . . . . . . . . . . . . . . . . . . . . . 12 . Hits 1172 | . 60 1 . 13 51 109 77 14 16 97 18 . . 14 156 33 13 . 76 71 . 2 78 8 1 2 254 8 Melee 77 | . . . . . . 4 . 14 . . . . . 1 . 2 . . . . . . . . . . 56 . Projectile 1095 | . 60 1 . 13 51 105 77 . 16 97 18 . . 13 156 31 13 . 76 71 . 2 78 8 1 2 198 8 AOE 13 | . . . . 3 . . . . . . . . . . 2 . . . . 1 . . . . . . 7 . Critical Strikes 70 | . 4 . . 1 2 6 6 6 . 2 1 . . 2 10 4 . . 4 2 . . . 1 . . 18 1 Actively Blocked 3 | . . . . . . . . . . . . . . . . . . . 1 2 . . . . . . . . Part Disruptions 3 | . . . . . . . 1 . . . . . . . 2 . . . . . . . . . . . . . Damage Taken 23663 | . 743 12 . 252 871 1805 1174 909 251 1674 355 . . 365 2686 574 103 . 1419 1426 . 47 1617 144 13 65 6959 199 Core 2992 | . 84 . . 27 101 187 83 314 16 92 . . . . 250 14 9 . 100 121 . . 264 14 13 . 1104 199 Absorbed by Shields 2473 | . . . . . . . 36 . . 4 . . . . 475 107 39 . 70 . . . 61 150 13 65 1453 . Redirected to Shielding 334 | . . . . . . . . . . 48 22 . . 83 . . . . 165 . . . . . . . 16 . Ignored by Resistances 31 | . . . . . . . . . . . . . . . . . . . . . . . 21 10 . . . . Regen/Repaired (Parts) 358 | . . . . . . 218 . . . . . . . . 140 . . . . . . . . . . . . . Core Remaining (%) 64 | 100 . . . 55 . 47 . . 41 . . . . 89 . . . . 55 . . . . . . 64 . . Volleys Fired 788 | 14 63 8 . 12 56 109 82 12 14 77 13 7 . 8 60 18 5 . 40 8 . 3 75 8 2 13 81 . Largest 3 | 2 2 2 . 2 3 3 3 3 2 2 2 2 . 2 3 3 2 . 2 1 . 1 2 2 2 2 3 . Hottest 183 | 40 100 100 . 60 69 73 183 183 73 88 80 80 . 80 140 161 63 . 80 81 . 88 88 80 70 70 117 . Shots Fired 1532 | 28 110 9 . 24 138 255 238 16 29 125 20 8 . 12 111 40 11 . 65 8 . 3 88 11 5 23 155 . Gun 922 | 28 68 . . . 122 229 235 11 . . . . . . 16 39 6 . . . . 3 23 3 5 20 114 . Cannon 499 | . 27 2 . 24 2 . . . 29 109 15 8 . 7 95 1 5 . 59 8 . . 65 8 . 3 32 . Launcher 86 | . . . . . 14 26 3 5 . 16 5 . . 5 . . . . 6 . . . . . . . 6 . Special 25 | . 15 7 . . . . . . . . . . . . . . . . . . . . . . . . 3 . Kinetic 1243 | 28 95 2 . 24 124 229 104 . 29 109 15 8 . 7 108 39 11 . 59 5 . . 78 11 5 23 130 . Thermal 183 | . 15 7 . . . . 131 11 . . . . . . 3 1 . . . . . 3 10 . . . 2 . Explosive 54 | . . . . . 14 26 3 5 . . . . . . . . . . . . . . . . . . 6 . Electromagnetic 49 | . . . . . . . . . . 16 5 . . 5 . . . . 6 3 . . . . . . 14 . Robot Hit Streak 26 | 4 13 4 . 7 15 26 11 17 3 7 7 3 . 13 18 18 7 . 6 11 . 12 9 3 2 4 13 . Robot Miss Streak 10 | 3 3 . . 3 6 3 6 . 9 10 3 . . . 2 1 . . 8 . . 1 4 2 3 5 8 . Penetration Max 1 | . . . . . . . . . 1 1 . . . . 1 . . . . . . . 1 1 . 1 1 . Secondary Targets 14 | . . . . . 3 5 1 . . . . . . . . 4 . . . . . . . . . . 1 . Max Gunslinging Chain 2 | . . . . . 1 2 1 . . . . . . . . 1 . . . . . . . . . . 1 . Capacitor 16 | . . . . . . . . . . . . . . . . . . . . . . . . . . . 16 . Shots Hit Robots 1009 | 16 63 2 . 14 82 168 139 19 17 88 11 1 . 11 107 24 8 1 25 24 . 4 54 19 17 12 83 . Core Hits 507 | 5 28 . . 7 60 96 63 5 8 53 11 1 . 6 41 15 4 . 15 4 . 1 22 7 10 8 37 . Critical Kills 13 | 1 . . . . 2 . 1 . . . . . . . 1 1 . . 1 . . . 1 . 1 2 2 . Critical Parts Destroyed 21 | . . . . . . 1 1 . . 3 . . . . 4 1 . 1 1 2 . . 2 . . . 5 . Critical Strikes 86 | 1 1 . . 1 2 1 14 . . 15 1 . . 1 15 2 . 1 2 3 . . 11 1 2 2 10 . Burn 12 | . . . . . . . 12 . . . . . . . . . . . . . . . . . . . . . Destroy 20 | 1 . . . . 2 1 1 . . . . . . . . 2 . . 1 . . . 1 . 1 2 8 . Blast 36 | . 1 . . 1 . . . . . 11 1 . . 1 10 . . . . . . . 8 1 . . 2 . Smash 16 | . . . . . . . 1 . . 3 . . . . 5 . . 1 1 3 . . 2 . . . . . Sever 1 | . . . . . . . . . . . . . . . . . . . . . . . . . 1 . . . Impale 1 | . . . . . . . . . . 1 . . . . . . . . . . . . . . . . . . Melee Attacks 291 | . . . . . 6 7 17 3 11 49 10 4 . 6 60 6 10 1 9 28 . 3 11 13 15 3 19 . Impact 196 | . . . . . 6 7 5 . . 31 10 4 . 6 60 6 10 1 9 28 . 3 10 . . . . . Slashing 57 | . . . . . . . 12 3 . . . . . . . . . . . . . . 1 13 15 3 10 . Piercing 38 | . . . . . . . . . 11 18 . . . . . . . . . . . . . . . . 9 . Sneak Attacks 89 | . . . . . . 3 8 . 9 16 2 . . 1 13 1 . . 1 8 . . 4 13 9 1 . . Combat Hostiles 3 | . . . . . . . . . . . . . . . . . . . . 3 . . . . . . . . Follow-up Attacks . | . . . . . . . . . . . . . . . . . . . . . . . . . . . . . Damage Inflicted 35967 | 156 902 40 . 467 1980 4631 3659 865 839 4105 721 26 . 495 4048 624 197 91 1208 1256 . 171 2449 1062 1278 870 3827 . Guns 10755 | 156 601 . . . 1124 2431 2593 218 . . . . . . 293 486 135 . . . . 52 214 66 55 301 2030 . Cannons 8407 | . 277 40 . 271 34 . . . 268 1599 165 26 . 146 2302 32 . . 705 248 . . 1844 162 . . 288 . Explosions 7784 | . . . . 196 822 1884 373 602 . 979 441 . . 241 . . . . 293 . . . . . . 455 1498 . Melee 8986 | . . . . . . 316 693 45 571 1527 115 . . 108 1453 106 62 91 210 1008 . 119 391 834 1223 114 . . Ramming 11 | . . . . . . . . . . . . . . . . . . . . . . . . . . . 11 . Kinetic 16867 | 156 878 40 . 271 1158 2431 943 . 268 1599 165 26 . 146 2519 486 135 . 705 195 . . 1951 228 55 301 2211 . Thermal 2617 | . 24 . . 196 . . 1650 218 . 66 165 . . . 76 32 . . . . . 52 107 . . . 31 . Explosive 5179 | . . . . . 822 1884 373 602 . . . . . . . . . . . . . . . . . . 1498 . Electromagnetic 2307 | . . . . . . . . . . 913 276 . . 241 . . . . 293 53 . . . . . 455 76 . Impact 5504 | . . . . . . 316 225 . . 1300 115 . . 108 1453 106 62 91 210 1008 . 119 391 . . . . . Slashing 2684 | . . . . . . . 468 45 . . . . . . . . . . . . . . . 834 1223 114 . . Piercing 798 | . . . . . . . . . 571 227 . . . . . . . . . . . . . . . . . . Highest Corruption 26 | . 2 2 2 2 1 1 9 21 21 8 2 2 2 2 10 16 16 16 26 4 11 11 11 11 11 6 5 5 Average Corruption 6 | . 2 2 2 2 1 1 6 14 21 4 2 2 2 2 4 10 16 16 16 3 8 11 11 11 5 5 1 5 Corruption Purged 13 | . . . . . . . . . . 7 . . . . . . . . . . . . . . 6 . . . Corruption Blocked . | . . . . . . . . . . . . . . . . . . . . . . . . . . . . . Effects 825 | . 15 13 5 7 7 9 98 8 48 97 18 13 . 10 76 64 62 6 69 4 1 17 83 18 33 8 35 1 Message Errors 201 | . 1 3 3 2 . 3 26 1 11 26 4 3 . 2 21 13 18 1 21 . 1 3 15 3 10 1 9 . Matter Fused 198 | . 7 2 . 2 2 2 18 3 11 25 7 2 . 3 17 20 8 2 14 1 . 5 20 6 10 3 8 . Heat Flow Errors 87 | . . 2 1 . 1 2 17 . 4 8 1 3 . . 9 6 7 1 4 2 . 2 8 1 3 2 3 . Energy Discharges 104 | . 3 3 . . 1 . 10 . 6 15 2 2 . 1 7 6 10 1 7 1 . 2 12 4 5 . 5 1 Parts Rejected 10 | . 1 . . . 1 . 1 1 . 1 . . . 1 2 . . . . . . . 2 . . . . . Parts Fused 9 | . . 1 . . . . 1 . 1 . 1 . . . 2 2 . . 1 . . . . . . . . . Data Loss (minor) 90 | . 2 . . 1 1 1 10 . 10 11 1 2 . 1 8 5 11 1 5 . . . 11 1 2 2 4 . Data Loss (major) 50 | . . 1 . . 1 1 7 . 3 2 2 . . 1 4 5 4 . 6 . . 2 6 2 1 . 2 . Misfires 31 | . . . . 1 . . 4 . 1 4 . . . 1 1 4 3 . 5 . . . 4 . 1 . 2 . Alerts 20 | . . 1 1 . . . . . 1 3 . 1 . . 3 2 1 . 2 . . . 3 . 1 . 1 . Misdirections 10 | . . . . . . . . 3 . . . . . . 1 . . . 1 . . 3 1 1 . . . . Weapon Failures 15 | . 1 . . 1 . . 4 . . 2 . . . . 1 1 . . 3 . . . 1 . . . 1 . Overload Shots . | . . . . . . . . . . . . . . . . . . . . . . . . . . . . . Overflow Damage 3904 | . . . . . . 185 27 . 180 923 75 . . 23 729 66 . 91 181 505 . 42 325 150 297 61 44 . Projectiles 193 | . . . . . . . . . . 29 . . . . 4 . . . 47 . . . 113 . . . . . Explosions 166 | . . . . . . 49 . . . . 40 . . . . . . . . . . . . . . 33 44 . Melee 3545 | . . . . . . 136 27 . 180 894 35 . . 23 725 66 . 91 134 505 . 42 212 150 297 28 . . Knockbacks 77 | . 4 . . 4 . . . . 2 16 . . . 2 29 . . . 1 4 . 1 12 . . . 2 . Impact 24 | . . . . . . . . . . 7 . . . 1 9 . . . . 4 . 1 1 . . . 1 . Kinetic 51 | . 3 . . 4 . . . . 2 9 . . . 1 19 . . . 1 . . . 11 . . . 1 . Secondary 2 | . 1 . . . . . . . . . . . . . 1 . . . . . . . . . . . . . Self-Inflicted Damage 1061 | . . . . 9 23 81 88 262 . 117 26 . . 78 . . . . 3 . . . . . . 100 274 . Shots 26 | . . . . 1 1 4 1 5 . 2 2 . . 3 . . . . 1 . . . . . . 1 5 . Rammed 1 | . . . . . . . . . . . . . . . . . . . . . . . . . . . 1 . Targets Rammed 2 | . . . . . . . . . . . . . . . . . . . . . . . . . . . 2 . Kicked 1 | . . . . . . . . . . . . . . . . . . . . . . . . . . . 1 . Crushed . | . . . . . . . . . . . . . . . . . . . . . . . . . . . . . Highest Temperature 351 | . 100 261 222 88 291 185 351 27 270 306 109 272 . 90 323 247 274 242 228 39 . 169 198 71 207 194 239 . Average Temperature 74 | . 26 72 118 47 84 42 88 14 85 73 23 86 . 35 100 93 82 133 84 24 . 90 85 42 89 83 58 . Received Heat Transfer 4156 | . 405 6 . 84 441 792 147 . 12 348 72 . . 153 621 174 . . 274 84 . 12 190 4 . . 328 9 Effects 7 | . . . . . . . 1 . . 1 . . . . 3 1 1 . . . . . . . . . . . Energy Bleed 3 | . . . . . . . . . . 1 . . . . . 1 1 . . . . . . . . . . . Interference 3 | . . . . . . . . . . . . . . . 3 . . . . . . . . . . . . . Damage (minor) 1 | . . . . . . . 1 . . . . . . . . . . . . . . . . . . . . . Siege Activations . | . . . . . . . . . . . . . . . . . . . . . . . . . . . . . Martial Activations . | . . . . . . . . . . . . . . . . . . . . . . . . . . . . . Shielding Activations . | . . . . . . . . . . . . . . . . . . . . . . . . . . . . . Robots Disrupted 2 | . . . . . . . . . . . . . . 1 . . . . . 1 . . . . . . . . Combat Hostiles 2 | . . . . . . . . . . . . . . 1 . . . . . 1 . . . . . . . . Robots Corrupted 33 | . . . . . . 1 . . . 13 . . . 2 8 . . 1 2 3 . 1 1 . . 1 . . Combat Hostiles 8 | . . . . . . . . . . 4 . . . 1 . . . 1 2 . . . . . . . . . Parts Fried 74 | . . . . . . 2 2 . . 24 . . . 6 18 . . . 5 9 . 2 5 . . 1 . . Impact Corruptions 85 | . . . . . . 4 . . . 22 2 . . 1 26 1 . 1 3 15 . 3 7 . . . . . Robots Melted 2 | . . . . . . . 2 . . . . . . . . . . . . . . . . . . . . . Combat Hostiles 2 | . . . . . . . 2 . . . . . . . . . . . . . . . . . . . . . Parts Melted 19 | . . . . . . 1 17 . 1 . . . . . . . . . . . . . . . . . . . Heat Transferred 4965 | . 50 . . 200 . . 3774 407 . . 50 . . . 175 50 . . . . . 74 148 . . . 37 . Parts Sabotaged . | . . . . . . . . . . . . . . . . . . . . . . . . . . . . . Parts Stolen . | . . . . . . . . . . . . . . . . . . . . . . . . . . . . . Parts Stripped . | . . . . . . . . . . . . . . . . . . . . . . . . . . . . . Power Chain Reactions 2 | . . . . . . . . . . 1 1 . . . . . . . . . . . . . . . . . Alert | -11 -10 -10 -10 -9 -8 -8 -7 -7 -7 -6 -6 -6 -6 -5 -5 -5 -5 -5 -4 -4 -4 -4 -4 -4 -4 -4 -3 -3 ------- Run | Yrd Mat Min Exi Min Mat Sto Fac Was Fac Fac Low Low Dat Pro Fac Upp Upp Zhi Pro Fac Was Fac Ext Cet Arc Hub Res Tes Maximum Alert Level 5 | . . . . . 2 3 2 . . 2 . . . . 2 . . . . 3 . . 2 1 . 2 1 5 Low Security (%) 67 | 100 100 100 . 100 76 . 57 100 100 70 . . . . 85 . . . . . 100 100 57 20 100 35 58 1 Level 1 16 | . . . . . 10 8 14 . . 19 . . . . 12 . . . . 22 . . 19 79 . 64 41 . Level 2 11 | . . . . . 12 35 27 . . 10 . . . . 2 . . . . 49 . . 22 . . . . . Level 3 3 | . . . . . . 56 . . . . . . . . . . . . . 27 . . . . . . . . Level 4 . | . . . . . . . . . . . . . . . . . . . . . . . . . . . . . Level 5 . | . . . . . . . . . . . . . . . . . . . . . . . . . . . . . High Security . | . . . . . . . . . . . . . . . . . . . . . . . . . . . . . Max Security . | . . . . . . . . . . . . . . . . . . . . . . . . . . . . 98 Peak Influence 1600 | 5 116 34 . 98 532 853 544 190 82 514 . . . . 411 . . . . 916 64 52 473 302 186 683 358 1600 Initial 916 | . . 3 . . . 220 260 190 30 34 . . . . . . . . . 916 64 30 . 218 92 1 358 48 Average 169 | . 32 1 . 27 159 671 214 108 19 140 . . . . 73 . . . . 559 55 10 203 236 53 204 136 1574 Influence Increases 11541 | 15 368 47 . 198 983 1307 931 14 245 1116 135 20 . 75 953 405 . 5 270 1095 . 95 1135 392 271 863 603 . Destroy 0b10 Robot/C 4800 | . 220 40 . 140 500 740 440 . 100 500 100 20 . 60 300 200 . . 180 20 . . 560 160 80 160 280 . Destroy 0b10 Robot/NC 635 | 15 30 . . . 40 85 95 . 35 80 . . . 5 90 5 . 5 15 20 . 10 15 10 45 35 . . Destroy Leader 1092 | . 56 . . 30 130 172 156 . 30 152 20 . . 10 110 20 . . 30 10 . . 60 . . 36 70 . Allied During Kill 697 | . . 2 . 4 . 9 . . . . . . . . . . . . . . . . 227 166 125 164 . . Trap Triggered on 0b10 540 | . . . . . 50 20 100 . 50 100 . . . . 60 . . . . 60 . 20 70 . . . 10 . Successful Hack 278 | . 19 . . . 40 18 36 . 16 4 . . . . 100 . . . . 5 . 18 14 . . . 8 . Disable Machine 570 | . . . . 15 60 60 30 . . 120 . . . . 45 . . . . . . . . . 15 210 15 . Destroy Structure 1114 | . 13 5 . 9 73 143 59 14 14 100 . . . . 98 . . . . 20 . 2 54 56 6 258 190 . Advance Influence 900 | . . . . . . . . . . . . . . . . . . . . 900 . . . . . . . . Partial Spotted 90 | . . . . . . . 15 . . 30 . . . . . . . . . . . 15 . . . . 30 . Lose Combat Pursuer 825 | . 30 . . . 90 60 . . . 30 15 . . . 150 180 . . 45 60 . 30 135 . . . . . Influence Decreases 11493 | 15 358 57 . 198 461 1256 960 514 219 672 533 136 . 75 545 766 47 5 244 936 141 139 744 551 498 185 1199 39 Entered New Map 2228 | . . 7 . . . 302 313 354 14 36 191 23 . . . 152 10 . . 10 121 14 . 173 140 4 325 39 Time Decay 7153 | 15 348 50 . 178 401 534 607 60 205 606 342 113 . 65 456 604 37 5 203 386 20 115 562 238 298 101 604 . Search Patrol Dispatched 450 | . . . . . . . . . . . . . . . . . . . . 450 . . . . . . . . Lost Part 783 | . 10 . . . 50 80 20 100 . 10 . . . 10 40 10 . . 41 70 . 10 62 . . . 270 . Lost Ally 540 | . . . . 20 10 40 20 . . 20 . . . . 10 . . . . 20 . . 120 140 60 80 . . Purge Threat 339 | . . . . . . 300 . . . . . . . . 39 . . . . . . . . . . . . . Squads Dispatched 71 | . 1 1 . 1 4 5 15 . 2 15 . . . . 14 . . . . 1 . 3 2 . . 3 4 . Investigation 15 | . . . . . . . 5 . . 2 . . . . 4 . . . . . . 1 . . . . 3 . Extermination 27 | . . . . . . . 8 . 2 9 . . . . 6 . . . . 1 . 1 . . . . . . Reinforcement 24 | . 1 . . 1 4 2 2 . . 4 . . . . 4 . . . . . . 1 2 . . 2 1 . Assault 4 | . . 1 . . . 2 . . . . . . . . . . . . . . . . . . . 1 . . Garrison 1 | . . . . . . 1 . . . . . . . . . . . . . . . . . . . . . . Intercept . | . . . . . . . . . . . . . . . . . . . . . . . . . . . . . Searches Triggered 3 | . . . . . . . . . . . . . . . . . . . . 3 . . . . . . . . Data Miner Redirects 3 | . . . . . . . . . . . . . . . 2 . . . . . . 1 . . . . . . Construction Impeded 6 | . . . . 1 1 1 . . . 2 . . . . 1 . . . . . . . . . . . . . Haulers Reinforced 3 | . . . . . . . . . . 1 . . . . 1 . . . . . . . . . . 1 . . Active Scanning Responses . | . . . . . . . . . . . . . . . . . . . . . . . . . . . . . Cargo Convoy Interrupts . | . . . . . . . . . . . . . . . . . . . . . . . . . . . . . Stealth | -11 -10 -10 -10 -9 -8 -8 -7 -7 -7 -6 -6 -6 -6 -5 -5 -5 -5 -5 -4 -4 -4 -4 -4 -4 -4 -4 -3 -3 --------- Run | Yrd Mat Min Exi Min Mat Sto Fac Was Fac Fac Low Low Dat Pro Fac Upp Upp Zhi Pro Fac Was Fac Ext Cet Arc Hub Res Tes Distress Signals 26 | . 1 . . . 3 3 2 . . 1 . . . . . . . . 1 1 . . 3 2 . 2 7 . Communications Jammed 55 | . . . . . . . 1 . . 2 . . . . 6 . . . 3 . . . . . . 43 . . Distress Signals 52 | . . . . . . . 1 . . 2 . . . . 6 . . . . . . . . . . 43 . . Times Spotted 450 | . 19 2 . 7 44 51 39 6 6 31 9 . . 4 38 21 1 . 18 11 6 9 38 12 11 12 47 8 Peak Tracking Total 20 | . 4 1 . 3 7 7 4 5 3 4 4 . . 3 4 4 1 . 5 5 6 4 5 5 1 5 20 12 Tactical Retreats 30 | . 1 . . . 3 2 . . . 2 1 . . . 7 5 . . 1 1 . 1 6 . . . . . Traps | -11 -10 -10 -10 -9 -8 -8 -7 -7 -7 -6 -6 -6 -6 -5 -5 -5 -5 -5 -4 -4 -4 -4 -4 -4 -4 -4 -3 -3 ------- Run | Yrd Mat Min Exi Min Mat Sto Fac Was Fac Fac Low Low Dat Pro Fac Upp Upp Zhi Pro Fac Was Fac Ext Cet Arc Hub Res Tes Traps Triggered 23 | . 2 . . . 1 1 1 . 2 5 . . . . . . . . 1 1 . . 2 . . . 6 1 Indirectly . | . . . . . . . . . . . . . . . . . . . . . . . . . . . . . Trap Hack Attempts . | . . . . . . . . . . . . . . . . . . . . . . . . . . . . . Triggered . | . . . . . . . . . . . . . . . . . . . . . . . . . . . . . Disarmed . | . . . . . . . . . . . . . . . . . . . . . . . . . . . . . Reprogrammed . | . . . . . . . . . . . . . . . . . . . . . . . . . . . . . Reused 61 | . . . . . 5 2 10 . 5 10 . . . . 6 3 1 . 3 6 . 2 7 . . . 1 . Traps Reconfigurated 94 | . . . . . 2 7 20 . 10 18 . . . . 13 . . . . 6 . . 8 . . 1 9 . Traps Extracted 36 | . . . . . . . 4 . . 15 . . . . . 5 2 . . . . . 5 . . . 5 . Installed 42 | . . . . . 3 . 1 . 2 9 . . . . 3 6 2 . 4 3 . 2 5 . . . 2 . Triggered 61 | . . . . . 5 2 10 . 5 10 . . . . 6 3 1 . 3 6 . 2 7 . . . 1 . Most Traps Carried 12 | . . 4 4 4 4 . 4 3 3 6 6 6 6 6 6 11 11 11 12 8 5 2 5 . . . 3 3 Machines | -11 -10 -10 -10 -9 -8 -8 -7 -7 -7 -6 -6 -6 -6 -5 -5 -5 -5 -5 -4 -4 -4 -4 -4 -4 -4 -4 -3 -3 ---------- Run | Yrd Mat Min Exi Min Mat Sto Fac Was Fac Fac Low Low Dat Pro Fac Upp Upp Zhi Pro Fac Was Fac Ext Cet Arc Hub Res Tes Machines Disabled 43 | . . . . 1 4 4 2 . . 8 . . . . 3 . 1 . . . . . 4 . 1 14 1 . Max in Single Turn 11 | . . . . 1 1 1 1 . . 2 . . . . 1 . 1 . . . . . 1 . 1 11 1 . Garrison Access 5 | . . . . . . 1 . . . 1 . . . . 1 . . . . . . . . . . . 2 . Network Hub 1 | . . . . . . . . . . . . . . . . . . . . . . . . . . 1 . . Machines Repaired . | . . . . . . . . . . . . . . . . . . . . . . . . . . . . . Machines Dismantled . | . . . . . . . . . . . . . . . . . . . . . . . . . . . . . Machines Sabotaged . | . . . . . . . . . . . . . . . . . . . . . . . . . . . . . Overloaded Fab Kills . | . . . . . . . . . . . . . . . . . . . . . . . . . . . . . Hacking | -11 -10 -10 -10 -9 -8 -8 -7 -7 -7 -6 -6 -6 -6 -5 -5 -5 -5 -5 -4 -4 -4 -4 -4 -4 -4 -4 -3 -3 --------- Run | Yrd Mat Min Exi Min Mat Sto Fac Was Fac Fac Low Low Dat Pro Fac Upp Upp Zhi Pro Fac Was Fac Ext Cet Arc Hub Res Tes Machines Accessed 103 | . 9 . 2 . 8 10 12 . 5 14 . 1 4 . 17 . 2 7 . 1 . 2 2 1 . . 6 . Terminals 50 | . 6 . . . 8 7 4 . 3 7 . . . . 8 . . . . 1 . 2 2 1 . . 1 . Fabricators 12 | . . . . . . . 4 . 1 2 . . . . 4 . . . . . . . . . . . 1 . Repair Stations 6 | . 1 . . . . 1 2 . . . . . . . 2 . . . . . . . . . . . . . Recycling Units 11 | . 2 . . . . 1 1 . . 4 . . . . 1 . . . . . . . . . . . 2 . Scanalyzers 2 | . . . . . . . 1 . . . . . . . 1 . . . . . . . . . . . . . Garrison Access 6 | . . . . . . 1 . . 1 1 . . . . 1 . . . . . . . . . . . 2 . Total Hacks 311 | . 25 . 2 . 30 26 28 . 11 26 . 1 31 . 40 . 2 45 . 4 . 7 4 1 . . 28 . Successful 188 | . 16 . 2 . 15 13 11 . 2 8 . 1 31 . 23 . 2 45 . 2 . 2 1 . . . 14 . Failed 123 | . 9 . . . 15 13 17 . 9 18 . . . . 17 . . . . 2 . 5 3 1 . . 14 . Catastrophic 24 | . 1 . . . . 2 6 . 1 5 . . . . 4 . . . . . . 2 . 1 . . 2 . Database Lockouts . | . . . . . . . . . . . . . . . . . . . . . . . . . . . . . Manual 107 | . 15 . 1 . 19 7 7 . 7 10 . . . . 21 . . . . 3 . . . 1 . . 16 . Terminals 147 | . 20 . . . 30 15 9 . 9 14 . . . . 19 . . . . 4 . 7 4 1 . . 15 . Fabricators 30 | . . . . . . . 8 . 1 5 . . . . 10 . . . . . . . . . . . 6 . Repair Stations 19 | . 3 . . . . 6 4 . . . . . . . 6 . . . . . . . . . . . . . Recycling Units 18 | . 2 . . . . 4 3 . . 6 . . . . 1 . . . . . . . . . . . 2 . Scanalyzers 6 | . . . . . . . 4 . . . . . . . 2 . . . . . . . . . . . . . Garrison Access 10 | . . . . . . 1 . . 1 1 . . . . 2 . . . . . . . . . . . 5 . Terminal Hacks 111 | . 4 . 2 . 5 5 . . 1 2 . 1 31 . 2 . 2 45 . 1 . 2 1 . . . 7 . Record 47 | . . . 1 . . . . . . . . . 11 . . . 1 34 . . . . . . . . . . Part Schematic 17 | . . . . . . . . . . . . . 12 . . . . 3 . . . . . . . . 2 . Robot Schematic 5 | . . . . . . . . . . . . . 5 . . . . . . . . . . . . . . . Robot Analysis 6 | . 1 . . . 1 . . . . . . . . . . . . 4 . . . . . . . . . . Prototype ID Bank 7 | . . . . . . . . . . . . . 3 . . . . 4 . . . . . . . . . . Open Door 5 | . . . . . . 2 . . . . . 1 . . . . 1 . . . . 1 . . . . . . Branch Access Points 1 | . . . . . . . . . . . . . . . . . . . . . . . . . . . 1 . Terminal Index 4 | . 1 . . . 1 1 . . . . . . . . . . . . . . . . . . . . 1 . Alert Level 1 | . . . . . . . . . . . . . . . . . . . . 1 . . . . . . . . Unreport Threat 3 | . . . . . . 2 . . . . . . . . 1 . . . . . . . . . . . . . Locate Traps 4 | . 1 . . . . . . . . 1 . . . . . . . . . . . 1 . . . . 1 . Hauler Manifests 4 | . . . . . 1 . . . 1 . . . . . 1 . . . . . . . . . . . 1 . Registered Components 1 | . . . . . . . . . . 1 . . . . . . . . . . . . . . . . . . Zone Layout 5 | . 1 . . . 2 . . . . . . . . . . . . . . . . . 1 . . . 1 . Proto ID Catalog 1 | . . . 1 . . . . . . . . . . . . . . . . . . . . . . . . . Fabricator Hacks 11 | . . . . . . . 5 . . 1 . . . . 4 . . . . . . . . . . . 1 . Network Status 1 | . . . . . . . 1 . . . . . . . . . . . . . . . . . . . . . Load Schematic 7 | . . . . . . . 3 . . 1 . . . . 2 . . . . . . . . . . . 1 . Build 3 | . . . . . . . 1 . . . . . . . 2 . . . . . . . . . . . . . Repair Station Hacks 11 | . 1 . . . . 5 1 . . . . . . . 4 . . . . . . . . . . . . . Scan Component 7 | . 1 . . . . 3 1 . . . . . . . 2 . . . . . . . . . . . . . Repair 4 | . . . . . . 2 . . . . . . . . 2 . . . . . . . . . . . . . Recycling Unit Hacks 7 | . 2 . . . . 1 . . . 2 . . . . . . . . . . . . . . . . 2 . Report Inventory 5 | . 2 . . . . . . . . 1 . . . . . . . . . . . . . . . . 2 . Retrieve Components 2 | . . . . . . 1 . . . 1 . . . . . . . . . . . . . . . . . . Scanalyzer 4 | . . . . . . . 2 . . . . . . . 2 . . . . . . . . . . . . . Insert Component 2 | . . . . . . . 1 . . . . . . . 1 . . . . . . . . . . . . . Analyze 2 | . . . . . . . 1 . . . . . . . 1 . . . . . . . . . . . . . Garrison Access Hacks 5 | . . . . . . 1 . . . 1 . . . . 1 . . . . . . . . . . . 2 . Seal Access 5 | . . . . . . 1 . . . 1 . . . . 1 . . . . . . . . . . . 2 . Unauthorized Hacks 39 | . 9 . . . 10 1 3 . 1 2 . . . . 10 . . . . 1 . . . . . . 2 . Terminals 35 | . 9 . . . 10 . 2 . 1 2 . . . . 8 . . . . 1 . . . . . . 2 . Assimilate 7 | . . . . . 2 . 1 . . . . . . . 4 . . . . . . . . . . . . . Botnet 16 | . 3 . . . 3 . 1 . 1 2 . . . . 4 . . . . 1 . . . . . . 1 . Operators 2 | . 1 . . . . . . . . . . . . . . . . . . . . . . . . . 1 . Skim 10 | . 5 . . . 5 . . . . . . . . . . . . . . . . . . . . . . . Fabricators 3 | . . . . . . . 1 . . . . . . . 2 . . . . . . . . . . . . . Prioritize 1 | . . . . . . . . . . . . . . . 1 . . . . . . . . . . . . . Recompile 2 | . . . . . . . 1 . . . . . . . 1 . . . . . . . . . . . . . Repair Stations . | . . . . . . . . . . . . . . . . . . . . . . . . . . . . . Recycling Units 1 | . . . . . . 1 . . . . . . . . . . . . . . . . . . . . . . Mask 1 | . . . . . . 1 . . . . . . . . . . . . . . . . . . . . . . Scanalyzers . | . . . . . . . . . . . . . . . . . . . . . . . . . . . . . Garrison Access . | . . . . . . . . . . . . . . . . . . . . . . . . . . . . . Data Cores Recovered . | . . . . . . . . . . . . . . . . . . . . . . . . . . . . . Used . | . . . . . . . . . . . . . . . . . . . . . . . . . . . . . Hacking Detections 71 | . 8 . . . 7 8 11 . 5 11 . . . . 14 . . . . 1 . 2 2 1 . . 1 . Full Trace Events 10 | . . . . . . . 4 . . 2 . . . . 2 . . . . . . 1 . . . . 1 . Feedback Events 1 | . . . . . . . . . . 1 . . . . . . . . . . . . . . . . . . Corruption 1 | . . . . . . . . . . 1 . . . . . . . . . . . . . . . . . . Feedback Blocked . | . . . . . . . . . . . . . . . . . . . . . . . . . . . . . Robot Schematics Acquired 5 | . . . . . . . . . . . . . 5 . . . . . . . . . . . . . . . Robots Built . | . . . . . . . . . . . . . . . . . . . . . . . . . . . . . Authchips . | . . . . . . . . . . . . . . . . . . . . . . . . . . . . . Time . | . . . . . . . . . . . . . . . . . . . . . . . . . . . . . Total Robot Build Rating . | . . . . . . . . . . . . . . . . . . . . . . . . . . . . . Part Schematics Acquired 18 | . . . . . . . 1 . . . . . 12 . . . . 3 . . . . . . . . 2 . Parts Built 3 | . . . . . . . 1 . . . . . . . 2 . . . . . . . . . . . . . Authchips 1 | . . . . . . . . . . . . . . . 1 . . . . . . . . . . . . . Time 168 | . . . . . . . 84 . . . . . . . 84 . . . . . . . . . . . . . Total Part Build Rating 12 | . . . . . . . 4 . . . . . . . 8 . . . . . . . . . . . . . Parts Repaired 3 | . . . . . . 2 . . . . . . . . 1 . . . . . . . . . . . . . Time 143 | . . . . . . 77 . . . . . . . . 66 . . . . . . . . . . . . . Parts Recycled . | . . . . . . . . . . . . . . . . . . . . . . . . . . . . . Recycled Matter . | . . . . . . . . . . . . . . . . . . . . . . . . . . . . . Retrieved Matter . | . . . . . . . . . . . . . . . . . . . . . . . . . . . . . Retrieved Components 17 | . . . . . . 10 . . . 7 . . . . . . . . . . . . . . . . . . Parts Scanalyzed 2 | . . . . . . . 1 . . . . . . . 1 . . . . . . . . . . . . . Part Schematics Acquired 1 | . . . . . . . 1 . . . . . . . . . . . . . . . . . . . . . Parts Damaged 1 | . . . . . . . 1 . . . . . . . . . . . . . . . . . . . . . Bothacking | -11 -10 -10 -10 -9 -8 -8 -7 -7 -7 -6 -6 -6 -6 -5 -5 -5 -5 -5 -4 -4 -4 -4 -4 -4 -4 -4 -3 -3 ------------ Run | Yrd Mat Min Exi Min Mat Sto Fac Was Fac Fac Low Low Dat Pro Fac Upp Upp Zhi Pro Fac Was Fac Ext Cet Arc Hub Res Tes Used RIF Installer . | . . . . . . . . . . . . . . . . . . . . . . . . . . . . . Robots Hacked 2 | . . . . . . . . . . . . . . . . . . . . . . . . . . . 2 . Non-combat . | . . . . . . . . . . . . . . . . . . . . . . . . . . . . . Combat 2 | . . . . . . . . . . . . . . . . . . . . . . . . . . . 2 . Robot Hacks Applied 2 | . . . . . . . . . . . . . . . . . . . . . . . . . . . 2 . parse_system 2 | . . . . . . . . . . . . . . . . . . . . . . . . . . . 2 . Relay Couplers Released 7 | . . . . . . . . . . . . . . . 4 . . . . . . . . . . . 3 . Machine Destruction 4 | . . . . . . . . . . . . . . . 1 . . . . . . . . . . . 3 . Programmers 3 | . . . . . . . . . . . . . . . 3 . . . . . . . . . . . . . Fabnet Peak Effective % . | . . . . . . . . . . . . . . . . . . . . . . . . . . . . . Robots Rewired 10 | . . . . . . . . . . . . . . . . . . . . 1 . . 9 . . . . . Allies Hacked . | . . . . . . . . . . . . . . . . . . . . . . . . . . . . . Hacks Repelled . | . . . . . . . . . . . . . . . . . . . . . . . . . . . . . Allies | -11 -10 -10 -10 -9 -8 -8 -7 -7 -7 -6 -6 -6 -6 -5 -5 -5 -5 -5 -4 -4 -4 -4 -4 -4 -4 -4 -3 -3 -------- Run | Yrd Mat Min Exi Min Mat Sto Fac Was Fac Fac Low Low Dat Pro Fac Upp Upp Zhi Pro Fac Was Fac Ext Cet Arc Hub Res Tes Total Allies 30 | . . 1 . . 1 2 1 . . . . . . . 1 . . . . 1 . . 18 5 . . . . Largest Group 12 | . . 1 1 1 1 2 1 . . . . . . . 1 . . . . 1 . . 10 12 7 4 . . Highest-Rated Group 882 | . . 31 31 31 10 62 10 . . . . . . . 26 . . . . 42 . . 548 882 505 384 . . Highest-Rated Ally 159 | . . 31 31 31 10 31 10 . . . . . . . 26 . . . . 42 . . 159 159 96 96 . . Total Orders 17 | . . . . . . . 5 . . 9 . . . . 2 . . . . . . . . . 1 . . . STAY 1 | . . . . . . . . . . . . . . . 1 . . . . . . . . . . . . . FOLLOW 1 | . . . . . . . . . . . . . . . 1 . . . . . . . . . . . . . AID 1 | . . . . . . . . . . . . . . . . . . . . . . . . . 1 . . . EXPLORE 12 | . . . . . . . 5 . . 7 . . . . . . . . . . . . . . . . . . RETURN 2 | . . . . . . . . . . 2 . . . . . . . . . . . . . . . . . . Ally Attacks 295 | . . 3 . 10 . 14 . . . . . . . . . . . . . 3 . . 114 86 22 43 . . Total Damage 9182 | . . 64 . 144 . 276 . . . . . . . . . . . . . 80 . . 3019 3288 718 1593 . . Kills 39 | . . 2 . 3 . . . . . . . . . . . . . . . . . . 14 9 3 8 . . Allies Corrupted . | . . . . . . . . . . . . . . . . . . . . . . . . . . . . . Allies Melted . | . . . . . . . . . . . . . . . . . . . . . . . . . . . . . Intel | -11 -10 -10 -10 -9 -8 -8 -7 -7 -7 -6 -6 -6 -6 -5 -5 -5 -5 -5 -4 -4 -4 -4 -4 -4 -4 -4 -3 -3 ------- Run | Yrd Mat Min Exi Min Mat Sto Fac Was Fac Fac Low Low Dat Pro Fac Upp Upp Zhi Pro Fac Was Fac Ext Cet Arc Hub Res Tes Active Infowar (turns) 26579 | 16 865 863 416 262 . 856 4441 65 485 3229 709 697 112 615 3452 1425 1418 204 1473 913 10 . 346 516 10 209 2972 . Optics 1542 | . . . . . . . 1477 65 . . . . . . . . . . . . . . . . . . . . IFF 6777 | . . . . . . . . . . . 709 697 112 615 79 1425 1418 204 1473 45 . . . . . . . . Terrain 226 | . . . . . . . . . . . . . . . . . . . . . . . 226 . . . . . Seismic 2422 | 16 865 863 416 262 . . . . . . . . . . . . . . . . . . . . . . . . Machine Analysis 6995 | . . . . . . 856 2964 . . 1989 . . . . . . . . . . . . . . . . 1186 . Jamming 13006 | . . . . . . . 1906 43 485 1813 . 140 . . 3431 . . . 744 868 10 . 121 516 10 209 2710 . Robot Analysis Total 6 | . 1 . . . 1 . . . . . . . . . . . . 4 . . . . . . . . . . Derelict Logs Recovered 6 | . . 1 . . . . . . . . 1 . . 1 . 1 1 . 1 . . . . . . . . . Drone Launches 12 | . . . . . . . 5 . . 7 . . . . . . . . . . . . . . . . . . Drone Recoveries 7 | . . . . . . . 3 . . 4 . . . . . . . . . . . . . . . . . . Exploration | -11 -10 -10 -10 -9 -8 -8 -7 -7 -7 -6 -6 -6 -6 -5 -5 -5 -5 -5 -4 -4 -4 -4 -4 -4 -4 -4 -3 -3 ------------- Run | Yrd Mat Min Exi Min Mat Sto Fac Was Fac Fac Low Low Dat Pro Fac Upp Upp Zhi Pro Fac Was Fac Ext Cet Arc Hub Res Tes Turns Passed 37892 | 117 1440 922 416 653 1996 1508 4570 122 1050 4834 775 697 112 652 4261 1947 1418 204 1500 914 50 488 2050 516 1267 251 3100 62 Spaces Moved 17460 | 56 702 442 219 323 995 623 1686 116 634 2000 511 529 91 407 1658 735 540 123 479 577 79 443 1149 247 370 150 1455 121 Core 686 | 5 . . . . . . . 108 177 . . . . . . . . . . . 76 189 . . . . 10 121 Treads . | . . . . . . . . . . . . . . . . . . . . . . . . . . . . . Legs 16774 | 51 702 442 219 323 995 623 1686 8 457 2000 511 529 91 407 1658 735 540 123 479 577 3 254 1149 247 370 150 1445 . Wheels . | . . . . . . . . . . . . . . . . . . . . . . . . . . . . . Hover . | . . . . . . . . . . . . . . . . . . . . . . . . . . . . . Flight . | . . . . . . . . . . . . . . . . . . . . . . . . . . . . . Fastest Speed 50 | 50 120 190 190 190 120 123 123 50 50 107 112 120 120 120 120 140 250 140 126 120 50 50 120 120 120 120 50 50 Average Speed 158 | 116 133 190 190 190 141 144 199 62 101 139 119 120 120 120 201 234 250 147 247 126 55 90 120 120 120 120 172 50 Slowest Speed 260 | 120 190 190 190 190 190 260 225 225 186 190 120 120 120 120 250 250 250 250 250 190 190 120 120 120 120 120 190 50 Overloaded Moves . | . . . . . . . . . . . . . . . . . . . . . . . . . . . . . Propulsion Burnouts . | . . . . . . . . . . . . . . . . . . . . . . . . . . . . . Robots Hopped . | . . . . . . . . . . . . . . . . . . . . . . . . . . . . . Potential Cave-ins . | . . . . . . . . . . . . . . . . . . . . . . . . . . . . . Cave-ins Triggered . | . . . . . . . . . . . . . . . . . . . . . . . . . . . . . Teleports 1 | . . . . . . . . . . . . . . . . . . 1 . . . . . . . . . . Exploration Rate (%) 56 | 4 96 83 61 59 68 88 59 78 14 41 62 60 69 56 36 71 61 62 54 14 85 9 96 65 95 17 54 21 Regions Visited 28 Branch Regions 17 Pre-discovered Areas 11 | . 1 1 1 1 3 . . . . . . . 1 . . . . 3 . . . . . . . . . . Known Exits Taken 17 | . 1 . . . . 1 . . . 1 1 1 1 1 1 1 1 1 1 . . 1 1 1 . 1 1 . Unknown Exits Taken 7 | 1 . 1 1 1 1 . . . 1 . . . . . . . . . . . . . . . 1 . . . Scrap Searched 22 | . . 1 . . . . . . . . 3 9 . 4 . 3 1 . 1 . . . . . . . . . Spaces Dug 187 | . 10 4 . . 14 2 8 . 2 40 9 5 . 5 35 7 9 . 6 10 . 1 3 . . 2 15 . Terrain Destroyed 1016 | . 13 7 . 9 100 163 53 24 14 111 38 5 . 5 52 14 11 . 29 10 . 1 31 4 1 175 146 . Melee 141 | . . . . . 6 2 8 . 2 26 8 4 . 5 32 5 7 . 6 10 . 1 3 . . 1 15 . Projectile 188 | . 13 7 . . . . . . 12 29 9 1 . . 20 9 4 . 23 . . . 28 4 1 11 17 . AOE 687 | . . . . 9 94 161 45 24 . 56 21 . . . . . . . . . . . . . . 163 114 . Terrain Rammed . | . . . . . . . . . . . . . . . . . . . . . . . . . . . . . Walls Destroyed . | . . . . . . . . . . . . . . . . . . . . . . . . . . . . . Machines Disabled . | . . . . . . . . . . . . . . . . . . . . . . . . . . . . . Actions | -11 -10 -10 -10 -9 -8 -8 -7 -7 -7 -6 -6 -6 -6 -5 -5 -5 -5 -5 -4 -4 -4 -4 -4 -4 -4 -4 -3 -3 --------- Run | Yrd Mat Min Exi Min Mat Sto Fac Was Fac Fac Low Low Dat Pro Fac Upp Upp Zhi Pro Fac Was Fac Ext Cet Arc Hub Res Tes Total 25714 | 79 1070 502 220 341 1460 1012 2689 145 992 3843 636 576 94 548 2360 903 583 145 706 703 90 523 1700 435 1166 191 1879 123 Wait 5986 | . 255 41 . . 331 206 798 . 297 1563 90 22 . 108 494 111 17 . 152 59 . 63 291 153 763 21 151 . Move 17435 | 55 701 441 218 322 994 622 1686 115 633 1999 510 528 90 406 1657 734 539 122 478 577 78 442 1148 246 369 149 1455 121 Hop . | . . . . . . . . . . . . . . . . . . . . . . . . . . . . . Pick Up 152 | 3 15 5 1 1 13 11 19 2 8 22 1 2 . 4 12 . . 1 2 2 . . . . 1 . 26 1 Fast Attach 210 | 7 4 . . . 9 11 13 4 12 25 2 4 2 . 19 2 3 8 1 5 . 4 29 8 8 . 30 . Attach 84 | . 1 . . 1 7 6 5 4 2 5 . 1 . 2 9 . . 3 4 3 1 3 6 . . . 21 . Detach 47 | . . . . . 3 1 2 1 1 5 . . . . 4 . 1 2 . 2 1 3 7 1 . . 13 . Swap 278 | . 15 5 . 2 22 26 39 . 8 40 6 2 . 4 20 25 3 1 14 3 . . 3 . . 5 35 . Drop 253 | . 16 2 1 3 16 13 27 4 4 44 4 6 2 2 22 1 3 7 2 . 10 . 14 6 8 . 35 1 Fire 788 | 14 63 8 . 12 56 109 82 12 14 77 13 7 . 8 60 18 5 . 40 8 . 3 75 8 2 13 81 . Melee 291 | . . . . . 6 7 17 3 11 49 10 4 . 6 60 6 10 1 9 28 . 3 11 13 15 3 19 . Ram . | . . . . . . . . . . . . . . . . . . . . . . . . . . . . . Kick 1 | . . . . . . . . . . . . . . . . . . . . . . . . . . . 1 . Crush . | . . . . . . . . . . . . . . . . . . . . . . . . . . . . . Escape Stasis 15 | . . . . . . . . . . 5 . . . . . . . . . . . . . . . . 10 . Rewire 132 | . . . . . . . . . . . . . . 8 . . . . . 13 . . 111 . . . . . Trap 42 | . . . . . 3 . 1 . 2 9 . . . . 3 6 2 . 4 3 . 2 5 . . . 2 . Miscellaneous . | . . . . . . . . . . . . . . . . . . . . . . . . . . . . . Route ------- -11/Scrapyard -10/Materials (discovered 6 exits: *Mat x3 / *Min x2 / Sub) -10/Mines (discovered 3 exits: *Mat / *Exi / *Sub) -10/Exiles (discovered 2 exits: [*Min x2]) -9/Mines -8/Materials (discovered 4 exits: *Fac x3 / *Sto) -8/Storage (discovered 2 exits: *Fac / Rec) -7/Factory (discovered 3 exits: *Fac x3) -7/Waste -7/Factory (discovered 2 exits: *Fac / [*Low]) -6/Factory (discovered 4 exits: *Fac x2 / *Low x2) -6/Lower Caves -6/Lower Caves -6/Data Miner -5/Proximity Caves -5/Factory (discovered 2 exits: *Fac / *Upp) -5/Upper Caves -5/Upper Caves -5/Zhirov -4/Proximity Caves -4/Factory (discovered 2 exits: Res / *Ext) -4/Waste -4/Factory -4/Extension (discovered 2 exits: *Res / *Cet) -4/Cetus (discovered 2 exits: *Res / *Arc) -4/Archives (discovered 3 exits: *Res / [*Hub x2]) -4/Hub_04(d) -3/Research (discovered 2 exits: *Tes x2) -3/Testing History --------- Turn | Location | Event 8 | -11/Scrapyard | Discovered new exit (range 15) 118 | -11/Scrapyard | Entered Materials 306 | -10/Materials | Build established: Mutant 356 | -10/Materials | Discovered new exit (range 2) 421 | -10/Materials | Discovered new exit (range 16) 635 | -10/Materials | Discovered new exit (range 8) 766 | -10/Materials | Discovered new exit (range 16) 1110 | -10/Materials | Learned location of 2 exits from Subcaves 1143 | -10/Materials | Learned Storage interactive machine intel 1158 | -10/Materials | Discovered new exit (range 16) 1166 | -10/Materials | Learned location of 2 exits from Subcaves 1179 | -10/Materials | Learned Storage interactive machine intel 1180 | -10/Materials | Identified exit to Materials 1180 | -10/Materials | Identified exit to Subcaves 1180 | -10/Materials | Identified exit to Mines 1194 | -10/Materials | Learned Storage emergency access door positions 1558 | -10/Materials | Entered Mines 1595 | -10/Mines | Found a hidden stash of uninstalled traps 1632 | -10/Mines | Met a Derelict testing a Signal Generator 1652 | -10/Mines | Met a Derelict bent on vengeance 1715 | -10/Mines | Found a Scrap Suit stashed away for nefarious purposes 1910 | -10/Mines | Build established: Scavenger-Mutant 1993 | -10/Mines | Discovered exit to Subcaves (range 11) 2062 | -10/Mines | Learned location of Zion (-7) 2182 | -10/Mines | Discovered exit to Materials (range 5) 2471 | -10/Mines | Deemed a non-threat by the Exiles lab entrance 2473 | -10/Mines | Discovered new exit (range 5) 2480 | -10/Mines | Entered Exiles 2480 | -10/Exiles | Accompanied by 1 ally 2505 | -10/Exiles | Discovered new exit (range 15) 2526 | -10/Exiles | Met 8R-AWN 2558 | -10/Exiles | Met EX-HEX 2612 | -10/Exiles | Met EX-BIN 2634 | -10/Exiles | Aligned with FarCom system 2636 | -10/Exiles | Given EX-Vault access code 2682 | -10/Exiles | Opened EX-Vault 2694 | -10/Exiles | Found Trap Reconfigurator 2733 | -10/Exiles | Warned to stay clear of 0b10 Research branches 2782 | -10/Exiles | Met EX-DEC 2871 | -10/Exiles | Discovered new exit (range 14) 2896 | -10/Exiles | Left Exiles lab with Trap Reconfigurator 2896 | -10/Exiles | Entered Mines 2896 | -9/Mines | Accompanied by 1 ally 2965 | -9/Mines | Assembled infested the area 2970 | -9/Mines | Assisted by a Guerilla fighting off Assembled 3370 | -9/Mines | Learned location of Storage (-8) 3472 | -9/Mines | Build established: Mutant 3526 | -9/Mines | Discovered new exit (range 12) 3549 | -9/Mines | Entered Materials 3549 | -8/Materials | Evolved 4 slots: Propulsion x1, Utility x2, Weapon x1 3847 | -8/Materials | Discovered new exit (range 12) 3902 | -8/Materials | Build established: Scavenger-Skirmisher 4634 | -8/Materials | Discovered new exit (range 15) 4825 | -8/Materials | Discovered new exit (range 13) 4884 | -8/Materials | Learned 4 Factory zone layouts 4934 | -8/Materials | Learned Factory trap positions 4973 | -8/Materials | Learned location of Extension (-4) 5004 | -8/Materials | Learned location of Lower Caves (-7) 5024 | -8/Materials | Learned location of 1 exit from Extension 5033 | -8/Materials | Learned location of 1 exit from Extension 5037 | -8/Materials | Learned 4 Factory zone layouts 5050 | -8/Materials | Learned Factory emergency access door positions 5075 | -8/Materials | Identified exit to Factory 5230 | -8/Materials | Build established: Tank 5545 | -8/Materials | Entered Storage 5546 | -8/Storage | Identified exit to Recycling 5548 | -8/Storage | Loaded intel: 18 interactive machine locations 5553 | -8/Storage | Met a pair of Derelict thieves 5624 | -8/Storage | Garrison activated, responded to threat 5724 | -8/Storage | Destroyed 10 combat bots 6237 | -8/Storage | Build established: Skirmisher 6456 | -8/Storage | Lost 3 parts (1n1u1w) 6495 | -8/Storage | Discovered exit to Factory (range 14) 6691 | -8/Storage | Core integrity fell below 50% 6754 | -8/Storage | Repaired Lgt. Armor Plating 6809 | -8/Storage | Repaired Imp. Assault Rifle 7053 | -8/Storage | Entered Factory 7053 | -7/Factory | Evolved 2 slots: Utility x2 7055 | -7/Factory | Loaded intel: 71 trap records 7108 | -7/Factory | Build established: Scavenger-Skirmisher 7956 | -7/Factory | Discovered new exit (range 34) 8091 | -7/Factory | Discovered new exit (range 120) 8208 | -7/Factory | Build established: Mutant 9632 | -7/Factory | Discovered new exit (range 15) 9706 | -7/Factory | Build established: Skirmisher 10511 | -7/Factory | Fabricated Lgt. Armored Exoskeleton? 11623 | -7/Factory | Sucked down chute 11623 | -7/Factory | Entered Waste 11638 | -7/Waste | EMP discharged 11638 | -7/Waste | System corruption reached 10% 11638 | -7/Waste | Spotted C-40 Crusher 11646 | -7/Waste | Crushed by Compactor (1 part destroyed) 11649 | -7/Waste | Crushed by Compactor (1 part destroyed, 1 dropped) 11652 | -7/Waste | Crushed by Compactor (1 part destroyed, 1 dropped) 11652 | -7/Waste | Spotted C-40 Crusher 11655 | -7/Waste | Crushed by Compactor (1 part destroyed) 11658 | -7/Waste | Crushed by Compactor (1 part destroyed) 11660 | -7/Waste | Destroyed C-40 Crusher 11670 | -7/Waste | Crushed by Compactor (1 part destroyed) 11673 | -7/Waste | Crushed by Compactor (0 parts destroyed, 1 dropped) 11679 | -7/Waste | Crushed by Compactor (1 part destroyed) 11685 | -7/Waste | Crushed by Compactor (1 part destroyed, 1 dropped) 11688 | -7/Waste | Crushed by Compactor (1 part destroyed, 1 dropped) 11689 | -7/Waste | Core integrity fell below 50% 11701 | -7/Waste | Spotted C-40 Crusher 11706 | -7/Waste | Spotted C-40 Crusher 11712 | -7/Waste | Spotted C-40 Crusher 11719 | -7/Waste | Lost 10 parts (1p2u7w) 11727 | -7/Waste | Spotted C-40 Crusher 11738 | -7/Waste | EMP discharged 11740 | -7/Waste | Discovered new exit (range 12) 11745 | -7/Waste | Entered Factory 11979 | -7/Factory | Build established: Mutant 12297 | -7/Factory | Discovered new exit (range 11) 12741 | -7/Factory | Allied Derelicts emerged from ambush trap array 12786 | -7/Factory | Discovered new exit (range 5) 12795 | -7/Factory | Entered another Factory area 12795 | -6/Factory | Evolved 2 slots: Propulsion x1, Utility x1 13165 | -6/Factory | Discovered new exit (range 15) 15535 | -6/Factory | Discovered new exit (range 37) 15627 | -6/Factory | Discovered new exit (range 26) 15891 | -6/Factory | Discovered new exit (range 29) 15965 | -6/Factory | Identified exit to Factory 16240 | -6/Factory | Identified exit to Lower Caves 16506 | -6/Factory | Found Powered Armor 17629 | -6/Factory | Entered Lower Caves 17679 | -6/Lower Caves | Learned Factory interactive machine intel 17693 | -6/Lower Caves | Found DCF Scrap (16 items) 18381 | -6/Lower Caves | Discovered new exit (range 8) 18398 | -6/Lower Caves | Ambushed by wild Derelicts 18403 | -6/Lower Caves | Identified exit to Lower Caves 18404 | -6/Lower Caves | Entered another Lower Caves area 18405 | -6/Lower Caves | Encountered a Warlord checkpoint 18472 | -6/Lower Caves | Found DCF Scrap (13 items) 18770 | -6/Lower Caves | Build established: Derelict-Mutant 18936 | -6/Lower Caves | Discovered new exit (range 14) 18956 | -6/Lower Caves | Identified exit to Data Miner 19101 | -6/Lower Caves | Entered Data Miner 19103 | -6/Data Miner | Discovered new exit (range 6) 19125 | -6/Data Miner | Met Data Miner 19147 | -6/Data Miner | Learned location of Section 7 (-2) 19147 | -6/Data Miner | Acquired the access code to Warlord's prototype stash 19167 | -6/Data Miner | Received God Mode back door access code from Data Miner 19212 | -6/Data Miner | Identified exit to Proximity Caves 19213 | -6/Data Miner | Entered Proximity Caves 19690 | -5/Proximity Caves | Learned Factory trap positions 19848 | -5/Proximity Caves | Discovered exit to Factory (range 11) 19865 | -5/Proximity Caves | Entered Factory 19865 | -5/Factory | Evolved 2 slots: Power x1, Utility x1 19866 | -5/Factory | Loaded intel: 110 trap records 19867 | -5/Factory | Loaded intel: 54 interactive machine locations 20158 | -5/Factory | Build established: Derelict-Assassin 20330 | -5/Factory | Incoming investigation squad redirected 20427 | -5/Factory | Fabricated Lgt. Armored Exoskeleton (x1) 20723 | -5/Factory | Build established: Mutant 21604 | -5/Factory | Repaired Gauss Cannon 22563 | -5/Factory | Fabricated Lgt. Armored Exoskeleton (x1) 22800 | -5/Factory | Discovered new exit (range 5) 22807 | -5/Factory | Identified exit to Factory 23568 | -5/Factory | System corruption reached 10% 23813 | -5/Factory | Incoming investigation squad redirected 23993 | -5/Factory | Discovered new exit (range 6) 24045 | -5/Factory | Identified exit to Upper Caves 24126 | -5/Factory | Entered Upper Caves 25078 | -5/Upper Caves | Learned Factory trap positions 25561 | -5/Upper Caves | Attracted the attention of an 0b10 checkpoint 25606 | -5/Upper Caves | Discovered new exit (range 9) 25626 | -5/Upper Caves | Identified exit to Upper Caves 26073 | -5/Upper Caves | Entered another Upper Caves area 26074 | -5/Upper Caves | Build established: Trapper-Mutant 26175 | -5/Upper Caves | Attacked by a delusional Derelict stockpiling parts 26353 | -5/Upper Caves | Entered a destroyed Warlord outpost 26365 | -5/Upper Caves | Learned location of 1 exit from Factory 27091 | -5/Upper Caves | Discovered new exit (range 4) 27099 | -5/Upper Caves | Identified exit to Zhirov 27491 | -5/Upper Caves | Entered Zhirov 27493 | -5/Zhirov | Discovered new exit (range 3) 27518 | -5/Zhirov | Met Zhirov 27561 | -5/Zhirov | Learned location of Quarantine (-2) 27561 | -5/Zhirov | Learned location of Testing (-3) 27561 | -5/Zhirov | Learned location of Command (-1) 27574 | -5/Zhirov | Zhirov requested help retrieving the SGEMP Prototype 27595 | -5/Zhirov | Found Alien Artifact 27595 | -5/Zhirov | Identified Integrated Dissipator 27595 | -5/Zhirov | Installed Integrated Dissipator, increased core heat dissipation (+20) 27669 | -5/Zhirov | Found Alien Artifact 27669 | -5/Zhirov | Identified Transdimensional Reconstructor 27669 | -5/Zhirov | Warped through subspace 27669 | -5/Zhirov | Identified exit to Proximity Caves 27695 | -5/Zhirov | Entered Proximity Caves 27701 | -4/Proximity Caves | Spotter reported a threat 27704 | -4/Proximity Caves | Spotter reported a threat 27757 | -4/Proximity Caves | Spotter reported a threat 27962 | -4/Proximity Caves | Spotter reported a threat 28103 | -4/Proximity Caves | Spotter reported a threat 28116 | -4/Proximity Caves | Learned Research stockpile data 28311 | -4/Proximity Caves | Spotter reported a threat 29167 | -4/Proximity Caves | Discovered exit to Factory (range 10) 29195 | -4/Proximity Caves | Entered Factory 29195 | -4/Factory | Evolved 2 slots: Propulsion x1, Utility x1 29196 | -4/Factory | Identified exit to Research 29197 | -4/Factory | Loaded intel: 85 trap records 29360 | -4/Factory | Discovered new exit (range 5) 29445 | -4/Factory | Search patrols dispatched 29695 | -4/Factory | Search patrols dispatched 29945 | -4/Factory | Search patrols dispatched 30051 | -4/Factory | Lost 3 parts (1n2w) 30109 | -4/Factory | Sucked down chute 30109 | -4/Factory | Entered Waste 30124 | -4/Waste | EMP discharged 30124 | -4/Waste | System corruption reached 10% 30135 | -4/Waste | Spotted C-40 Crusher 30135 | -4/Waste | Spotted C-40 Crusher 30137 | -4/Waste | Spotted C-40 Crusher 30140 | -4/Waste | Lost 3 parts (1p1n1u) 30144 | -4/Waste | Spotted C-40 Crusher 30145 | -4/Waste | Spotted C-40 Crusher 30146 | -4/Waste | Spotted C-40 Crusher 30152 | -4/Waste | Discovered new exit (range 15) 30159 | -4/Waste | Identified exit to Factory 30159 | -4/Waste | Entered Factory 30253 | -4/Factory | Build established: Mutant 30345 | -4/Factory | Discovered new exit (range 5) 30449 | -4/Factory | Identified exit to Extension 30548 | -4/Factory | Incoming investigation squad redirected 30647 | -4/Factory | Entered Extension 30648 | -4/Extension | Identified exit to Cetus 30778 | -4/Extension | Disrupted transfer network 31193 | -4/Extension | Lost 3 parts (1n2w) 31311 | -4/Extension | Rescued a captive Derelict 31312 | -4/Extension | Rescued a captive Derelict 31387 | -4/Extension | Rescued A7 31452 | -4/Extension | Build established: Scavenger-Mutant 31469 | -4/Extension | Rescued a captive Derelict 31706 | -4/Extension | Spotted B-86 Titan 31714 | -4/Extension | Destroyed B-86 Titan 31740 | -4/Extension | Spotted B-86 Titan 31772 | -4/Extension | Allies destroyed B-86 Titan 31778 | -4/Extension | Lost 3 allies 31804 | -4/Extension | Found Unknown Protection 31804 | -4/Extension | Identified Hvy. Reflective Plating 31850 | -4/Extension | Found Hvy. Reflective Plating 31914 | -4/Extension | Rescued a captive Derelict 32003 | -4/Extension | Lost 3 allies 32003 | -4/Extension | Rescued a captive Derelict 32046 | -4/Extension | Rescued a captive Derelict 32097 | -4/Extension | Rescued a captive Derelict 32097 | -4/Extension | Rescued a captive Derelict 32697 | -4/Extension | Entered Cetus 32697 | -4/Cetus | Accompanied by 10 allies (A7) 32702 | -4/Cetus | Acquired a Cetus Manufacturing Module code from A7 32715 | -4/Cetus | Spotted Cetus Guard 32715 | -4/Cetus | Spotted Cetus Guard 32716 | -4/Cetus | Spotted Cetus Guard 32717 | -4/Cetus | Spotted Cetus Guard 32731 | -4/Cetus | Allies destroyed Cetus Guard 32731 | -4/Cetus | Destroyed Cetus Guard 32736 | -4/Cetus | Allies destroyed Cetus Guard 32747 | -4/Cetus | Allies destroyed Cetus Guard 32772 | -4/Cetus | Lost 3 allies 32857 | -4/Cetus | Started Cetus Manufacturing Module 32882 | -4/Cetus | Manufactured an Enhanced Grunt 32907 | -4/Cetus | Manufactured an Enhanced Grunt 32932 | -4/Cetus | Manufactured an Enhanced Grunt 32957 | -4/Cetus | Manufactured an Enhanced Grunt 32982 | -4/Cetus | Manufactured an Enhanced Grunt 33014 | -4/Cetus | Discovered new exit (range 15) 33040 | -4/Cetus | Spotted Cetus Guard 33040 | -4/Cetus | Spotted Cetus Guard 33049 | -4/Cetus | Spotted Cetus Guard 33053 | -4/Cetus | Spotted Cetus Guard 33056 | -4/Cetus | Allies destroyed Cetus Guard 33063 | -4/Cetus | Allies destroyed Cetus Guard 33064 | -4/Cetus | Allies destroyed Cetus Guard 33064 | -4/Cetus | Allies destroyed Cetus Guard 33085 | -4/Cetus | Discovered exit to Research (range 15) 33091 | -4/Cetus | Lost 4 allies 33098 | -4/Cetus | Met Revision 17 33188 | -4/Cetus | Murdered A7 33190 | -4/Cetus | Extracted ID and sensor layout for unrecognized location from A7's data core 33202 | -4/Cetus | Identified exit to Archives 33213 | -4/Cetus | Entered Archives 33213 | -4/Archives | Accompanied by 7 allies 33383 | -4/Archives | Discovered new exit (range 16) 33396 | -4/Archives | Discovered new exit (range 16) 33435 | -4/Archives | Discovered exit to Research (range 13) 34480 | -4/Archives | Entered Hub_04(d) 34480 | -4/Hub_04(d) | Accompanied by 4 allies 34715 | -4/Hub_04(d) | Discovered exit to Research (range 10) 34729 | -4/Hub_04(d) | Network Hub disabled 34730 | -4/Hub_04(d) | First assault squad dispatched 34731 | -4/Hub_04(d) | Entered Research 34731 | -3/Research | Evolved 2 slots: Power x1, Utility x1 34749 | -3/Research | Found Prototype Device 34749 | -3/Research | Identified Exp. Thermal Shield 34931 | -3/Research | Revision forces began assault on 0b10 34977 | -3/Research | Identified exit to Testing 34979 | -3/Research | Met up with Revision 17++ 35209 | -3/Research | Found Prototype Launcher 35209 | -3/Research | Identified Tactical Quantum Warhead 35348 | -3/Research | Spotted B-86 Titan 35398 | -3/Research | Found Hvy. Reflective Plating 35431 | -3/Research | Research terminal network offline 35660 | -3/Research | Spotted Executioner 35661 | -3/Research | Spotted Striker 35694 | -3/Research | Destroyed Striker 35848 | -3/Research | Spotted Striker 35879 | -3/Research | Spotted Striker 35886 | -3/Research | Destroyed Striker 35918 | -3/Research | Destroyed Striker 35975 | -3/Research | Lost 3 parts (1p1u1w) 36396 | -3/Research | Found Quantum Capacitor 36864 | -3/Research | Spotted Striker 36903 | -3/Research | Destroyed Striker 37157 | -3/Research | Build established: Scavenger-Tank 37295 | -3/Research | Found Unknown Protection 37295 | -3/Research | Identified Hvy. Insulated Plating 37677 | -3/Research | Spotted Executioner 37692 | -3/Research | Destroyed Executioner 37738 | -3/Research | Spotted Striker 37750 | -3/Research | Spotted Striker 37784 | -3/Research | Spotted Striker 37797 | -3/Research | Spotted Striker 37818 | -3/Research | Core integrity fell below 50% 37826 | -3/Research | Released all parts (7) 37831 | -3/Research | Entered Testing 37832 | -3/Testing | Maximum security lockdown engaged 37832 | -3/Testing | Core integrity fell below 20% 37855 | -3/Testing | Lost 21 parts (5p6n6u4w) 37893 | -3/Testing | Destroyed by P-80 Master with Gamma Rifle Last Messages --------------- 37831_ Striker triggered Alarm Trap. 37831_ An alarm sounds. 37831_ ALERT: Alarm triggered, dispatching investigation squad. 37831_ G-67 Veteran suffers critical hit (Burn). 37831_ Slammed into G-67 Veteran. LOCATION=TESTING GOAL=ESCAPE 37831_ Receiving FarCom transmissions... 37832_ ALERT: Suspected Assembled signals penetrating research branch. 37832_ ALERT: Maximum security lockdown engaged. 37833_ ALERT: Machine network offline. 37834_ ALERT: Performing unscheduled system reset. 37835_ ALERT: Lockdown in effect, collecting threat data. 37836_ FARCOM_MSG: For science! 37878_ Dropped Adv. KE Penetrator. 37882_ Acquired Prototype Energy Cannon. 37889_ System corrupted: Energy discharge (-22). 37891_ Triggered Segregator Trap. 37891_ Arcs of energy rise from the floor. 37892_ Penetrated by Slug. Map ----- +----------------------------------------------------+ | ?????????????????????????????????????????????????? | | ?????????????????????????????????????????????????? | | ?????????????????????????????????????????????????? | | ?????????????????????????????????????????????????? | | ?????????????????????????????????????????????????? | | ?????????????????????????????????????????????????? | | ?????????????????????????????????????????????????? | | ?????????????????????????????????????????????????? | | ?????????????????????????????????????????????????? | | ????#####?????????????? ??????????????????????? | | ????! =?????########## #?????????????????????? | | ???? ?????#] # #?????????????????????? | | ???? " ?????# # #?????????????????????? | | ???? ??????# # #?????????????????????? | | ???? ??????# = # #?????????????????????? | | ##### #??????# w # #?????????????????????? | | #"""# #??????# # #?????????????????????? | | #"T"# #??????# + +?????????????????????? | | #??????? # #??????????g??????????? | | ^ #????????? ?# #?????????????????????? | | "" ############+#### #??????????g??????????? | | "" ! #??#####???g??????????? | | "" #? cg?????????????? | | """ p# ""G"" ??????????????? | | """ [[ Y " " ?????????????? | | ###+###### """ [p@ #YY" " [ ?????????????? | | # [ ???# #?? Y ??????????????? | | """ # ?# """ """ #????"????????????????? | | R" # ## """ """ #?????????????????????? | | """ # """ ## """ """ #?????????????????????? | | !# """ ## u !#?????????????????????? | | # """ ## w #?????????????????????? | | ### ## ## ###+####?????????????????????? | | ??# ^## """?## ?? ?????????????????????????? | | ??# ## "????# #?? ?????????????????????????? | | ??# ## "????? ??? ?????????????????????????? | | ??# ## ?????? ??????????????????????????????? | | ??# #####???????????????????????????????????????? | | ??# #???????????????????????????????????????????? | | ??# #???????????????????????????????????????????? | | ??# #???????##??????????????????????????????????? | | ??# #???"? #??????????????????????????????????? | | ??# #???"" #??????????????????????????????????? | | ??# #??""" #??????????????????????????????????? | | ??# #??"" #??????????????????????????????????? | | ??# #? #??????????????????????????????????? | | ??# #? #??????????????????????????????????? | | ??# # #??????????????????????????????????? | | ??# # #??????????????????????????????????? | | ??# + #??????????????????????????????????? | +----------------------------------------------------+ Best States ------------- Heat Dissipation 101 Coolant Potential 65 Energy Generation 59 Energy Capacity 720 Matter Stores 300 Matter Capacity 300 Sight Range 20 Terrain Scan Range 14 Terrain Scan Density 110 Jamming Range 14 Power Amplification 20 Base Temperature (-) 200 Corruption Containment 12 Armor Coverage 1200 Resistance: TH 30 Power Shielding 66 Weapon Shielding 90 Point Defense Rating 240 Evasion (%) 55 Targeting Accuracy 20 Melee Accuracy 10 Core Analysis 6 Matter Filtering 30 Kinecelleration 30 Offensive Hacking 36 Defensive Hacking 14 Authchip Count 1 Trap Extractor Capacity 6 Item Schematics ----------------- Lgt. Armored Exoskeleton | -7/Factory | Scanalyzed Combat Drone Bay | -6/Data Miner | Free Lgt. Regenerative Plating | -6/Data Miner | Free Cld. Nuclear Pulse Thruster | -6/Data Miner | Free Hvy. Proton Cannon | -6/Data Miner | Free Hvy. Siege Treads | -6/Data Miner | Free Exp. Heat Sink | -6/Data Miner | Free Imp. Armor Integrity Analyzer | -6/Data Miner | Free Imp. Point Defense System | -6/Data Miner | Free Adv. Transmission Jammer | -6/Data Miner | Free Dispersion Rifle | -6/Data Miner | Free Adv. Corruption Screen | -6/Data Miner | Free Adv. Heavy Treads | -6/Data Miner | Free Assault Drone Bay | -5/Zhirov | Free Exp. Optical Array | -5/Zhirov | Free Imp. Arc Thrower | -5/Zhirov | Free Hvy. Armored Exoskeleton | -3/Research | Hacked Hcp. Storage Unit | -3/Research | Hacked Robot Schematics ------------------ S-27 Virus | -6/Data Miner | Free B-48 Gladiator | -6/Data Miner | Free C-35 Carver | -6/Data Miner | Free E-15 Imp | -6/Data Miner | Free W-44 Eye | -6/Data Miner | Free Fabricated ------------ Lgt. Armored Exoskeleton | x1 | -7/Factory Lgt. Armored Exoskeleton | x1 | -5/Factory | Authchip Lgt. Armored Exoskeleton | x1 | -5/Factory Repaired ---------- Lgt. Armor Plating | 8% | -8/Storage Imp. Assault Rifle | 2% | -8/Storage Gauss Cannon | 17% | -5/Factory Alien Tech Used ----------------- Integrated Dissipator Transdimensional Reconstructor Achievements -------------- Guerrilla Style Minesweeper Challenges ------------ None Game ------ Seed SegregatorBackupStorage Manual? 0 Play Time 05:28:41 Cumulative 349.4 hours Start 2025.09.12 @ 06:32:43 End 2025.09.13 @ 14:06:58 Sessions 5 Manual Loads 0 Difficulty Rogue Special Mode None Game No. 139 Rogue 118 Adventurer 21 Explorer 0 Win Type - Total 14 Types 9/0/4/1/0/0/0/0/0/0 Lore% 51 Gallery% 71 Achievement% 65 Wizard Run 0 Options --------- Layout 1 ASCII 0 Keyboard 0 Movement Mouse Keybinds 0 Fullscreen 2 Font 32/SmallcapsGlow Map View 77x35 Zoom Use 0% Tactical HUD 1 Map Filters NONE Filters NONE Steam 1 RUN: 51e09a70-6936-4522-a07b-f43bad280851